bitfinex/quotes_BTCUSD_20250320
["timestamp","ask_amount","ask_price","bid_price","bid_amount"]
[1742484210687,0.01406769,85826.0,85825.0,1.94510521]
[1742484210914,0.002,85829.0,85828.0,0.249675]
[1742484211110,5.3e-07,85829.0,85828.0,0.58833721]
[1742484211311,0.0003392,85831.0,85830.0,0.26420885]
[1742484211525,0.00046375,85831.0,85830.0,0.42009021]
[1742484212087,0.00046375,85831.0,85830.0,1.92009021]
[1742484212502,0.01436889,85831.0,85830.0,1.92009021]
[1742484212709,2e-07,85833.0,85832.0,0.26420385]
[1742484212936,2e-07,85833.0,85832.0,0.42008521]
[1742484214055,2e-07,85833.0,85832.0,0.38377888]
[1742484214258,2e-07,85833.0,85832.0,0.52697888]
[1742484214463,0.01826731,85864.0,85832.0,0.54032888]
[1742484214618,0.01826731,85864.0,85848.0,0.36419203]
[1742484214818,0.000339,85870.0,85848.0,1.06203203]
[1742484215224,0.000339,85870.0,85848.0,1.07657288]
[1742484215422,0.01721271,85849.0,85848.0,1.07657288]
[1742484216601,0.01721271,85849.0,85848.0,1.08257288]
[1742484216951,0.01071222,85869.0,85856.0,0.232948]
[1742484217200,0.01071222,85869.0,85856.0,0.36417003]
[1742484217201,0.00046373,85857.0,85856.0,0.36417003]
[1742484217364,0.01466246,85857.0,85856.0,0.36417003]
[1742484217596,0.00046373,85857.0,85856.0,0.3872836]
[1742484218385,0.01476033,85857.0,85856.0,0.40682445]
[1742484218724,0.00046373,85857.0,85856.0,0.40682445]
[1742484218956,0.00046373,85857.0,85856.0,0.41282445]
[1742484219127,0.00046373,85857.0,85856.0,0.40682445]
[1742484219537,0.00046373,85857.0,85856.0,0.41282445]
[1742484219775,0.00046373,85857.0,85856.0,0.40682445]
[1742484220398,0.01462068,85857.0,85856.0,0.40682445]
[1742484220524,0.00046373,85857.0,85856.0,2.04998445]
[1742484220734,0.00046373,85857.0,85856.0,0.54998445]
[1742484221293,0.00046373,85857.0,85856.0,1.8932836]
[1742484221468,0.00046373,85857.0,85856.0,2.0364436]
[1742484221878,0.00046373,85857.0,85856.0,0.1486886]
[1742484222078,0.00046373,85857.0,85856.0,0.2918486]
[1742484222645,0.00046373,85857.0,85856.0,0.3034956]
[1742484222882,0.00046373,85857.0,85856.0,0.2918486]
[1742484223082,0.00046373,85857.0,85856.0,0.2858486]
[1742484223530,0.00046373,85857.0,85856.0,0.5304436]
[1742484224023,0.00046373,85857.0,85856.0,0.5187966]
[1742484224348,0.00046373,85857.0,85856.0,0.5247966]
[1742484224595,0.00046373,85857.0,85856.0,0.5187966]
[1742484225128,0.013642,85889.0,85860.0,0.232934]
[1742484225320,0.002,85889.0,85865.0,0.11957503]
[1742484225449,0.002,85889.0,85866.0,0.00232859]
[1742484225649,0.01440257,85877.0,85867.0,0.11957503]
[1742484225875,0.01440257,85877.0,85868.0,0.0023286]
[1742484226158,0.01440257,85877.0,85869.0,0.26269503]
[1742484226733,0.01440257,85877.0,85870.0,0.55444]
[1742484226942,0.01440257,85877.0,85871.0,0.11957503]
[1742484227528,0.01440257,85877.0,85870.0,0.55444]
[1742484227529,0.01540257,85877.0,85876.0,0.02334109]
[1742484227728,0.01540257,85877.0,85876.0,0.14524463]
[1742484228131,0.01440257,85877.0,85876.0,0.14524463]
[1742484228516,0.01540257,85877.0,85876.0,0.14524463]
[1742484228935,0.01440257,85877.0,85876.0,0.38413763]
[1742484229317,0.01540257,85877.0,85876.0,0.37580912]
[1742484229455,0.01540257,85877.0,85876.0,0.38180912]
[1742484230542,0.01540257,85877.0,85876.0,1.88180912]
[1742484230863,0.01540257,85877.0,85876.0,1.88680912]
[1742484231083,0.01540257,85877.0,85876.0,1.91299397]
[1742484231281,0.00477596,85877.0,85876.0,1.91299397]
[1742484231557,0.002,85889.0,85878.0,0.25907285]
[1742484231763,0.002,85889.0,85878.0,0.37864788]
[1742484232393,0.01487488,85879.0,85878.0,0.36700388]
[1742484232601,0.001,85879.0,85878.0,1.86700388]
[1742484232802,0.001,85879.0,85878.0,1.87864788]
[1742484233003,0.001,85879.0,85878.0,1.87300388]
[1742484233205,0.002,85879.0,85878.0,1.87600388]
[1742484233829,0.015812,85879.0,85878.0,1.87600388]
[1742484234070,0.015812,85879.0,85878.0,1.64311588]
[1742484234416,0.015812,85879.0,85878.0,1.87600388]
[1742484234612,0.014812,85879.0,85878.0,1.85246303]
[1742484234872,0.015812,85879.0,85878.0,1.86246303]
[1742484235235,0.015812,85879.0,85878.0,1.85646303]
[1742484235434,0.014812,85879.0,85878.0,1.87300388]
[1742484235656,0.015812,85879.0,85878.0,1.87800388]
[1742484235878,0.015812,85879.0,85878.0,1.87200388]
[1742484236126,0.015812,85879.0,85878.0,1.62557503]
[1742484236325,0.014812,85879.0,85878.0,1.62557503]
[1742484236565,0.015812,85879.0,85878.0,1.62457503]
[1742484236769,0.015812,85879.0,85878.0,1.76765503]
[1742484237644,0.015812,85879.0,85878.0,2.01508388]
[1742484237781,2e-07,85892.0,85891.0,0.232853]
[1742484238035,2e-07,85892.0,85891.0,0.51404888]
[1742484238239,0.00041615,85892.0,85891.0,0.52569088]
[1742484238891,0.01460122,85892.0,85891.0,0.51004888]
[1742484239126,0.01460122,85892.0,85891.0,0.26261503]
[1742484239346,0.00141615,85892.0,85891.0,0.15307446]
[1742484239525,0.22604166,85910.0,85891.0,0.29611446]
[1742484239838,0.22616634,85910.0,85897.0,0.11957503]
[1742484240101,0.22616634,85910.0,85898.0,0.55428]
[1742484240347,0.22616634,85910.0,85899.0,0.11957503]
[1742484241304,0.22716634,85910.0,85899.0,0.11957503]
[1742484241580,0.3,85909.0,85899.0,0.11957503]
[1742484241841,0.3,85909.0,85901.0,0.11957503]
[1742484242560,0.30012468,85910.0,85901.0,0.11957503]
[1742484243058,0.30112468,85910.0,85907.0,0.02376074]
[1742484243256,0.30112468,85910.0,85900.0,0.14304]
[1742484243257,0.001,85909.0,85908.0,0.11957503]
[1742484243470,0.001,85909.0,85908.0,0.08242186]
[1742484243471,0.24633,85909.0,85908.0,0.08242186]
[1742484243699,0.166682,85909.0,85908.0,0.08242186]
[1742484244087,0.146583,85909.0,85908.0,0.08242186]
[1742484244326,0.135097,85909.0,85908.0,0.08242186]
[1742484244529,0.135097,85909.0,85904.0,0.02316113]
[1742484244530,0.001,85907.0,85899.0,0.006]
[1742484244738,0.3,85908.0,85902.0,0.13104]
[1742484244739,0.001,85903.0,85902.0,0.13104]
[1742484244951,0.3,85908.0,85902.0,0.25061503]
[1742484245159,0.3,85908.0,85903.0,0.11957503]
[1742484245379,0.3,85908.0,85903.0,0.12190305]
[1742484245550,0.22604166,85909.0,85903.0,0.11957503]
[1742484245781,0.22704166,85909.0,85908.0,0.005]
[1742484245988,0.22704166,85909.0,85908.0,0.12457503]
[1742484246189,0.001,85909.0,85908.0,0.11957503]
[1742484246393,0.00029388,85910.0,85908.0,0.11957503]
[1742484247906,0.00029388,85910.0,85908.0,0.11857503]
[1742484248277,0.00029388,85910.0,85903.0,0.00125083]
[1742484248479,0.00029388,85910.0,85908.0,0.003]
[1742484248677,0.00129388,85910.0,85909.0,0.11957503]
[1742484249080,0.00129388,85910.0,85908.0,0.008]
[1742484249281,0.001,85909.0,85908.0,0.005]
[1742484249609,0.001,85909.0,85902.0,0.12163083]
[1742484249806,0.001,85909.0,85908.0,0.005]
[1742484250062,0.001,85909.0,85903.0,0.11957503]
[1742484250608,0.001,85909.0,85908.0,0.005]
[1742484251185,0.001,85909.0,85908.0,0.15004]
[1742484251783,0.001,85909.0,85908.0,0.14804]
[1742484252074,0.002,85909.0,85908.0,0.14404]
[1742484252389,0.002,85909.0,85908.0,0.14904]
[1742484252815,0.002,85909.0,85880.0,0.10355441]
[1742484252816,0.001,85899.0,85880.0,0.10355441]
[1742484253025,0.001,85899.0,85895.0,0.143]
[1742484253454,0.43112,85899.0,85895.0,0.143]
[1742484253659,0.967422,85899.0,85898.0,0.55428]
[1742484253851,0.967422,85899.0,85898.0,2.05428]
[1742484254057,0.489113,85899.0,85898.0,2.05428]
[1742484254866,0.3,85899.0,85898.0,0.69706697]
[1742484255243,0.301,85899.0,85898.0,0.70006697]
[1742484255443,0.301,85899.0,85898.0,0.70306697]
[1742484255664,0.302,85899.0,85898.0,0.70306697]
[1742484255874,0.301,85899.0,85898.0,0.70006697]
[1742484256636,0.302,85899.0,85898.0,0.70306697]
[1742484256843,0.302,85899.0,85898.0,0.58349194]
[1742484257266,0.302,85899.0,85898.0,0.70306697]
[1742484257502,0.301,85899.0,85898.0,0.70006697]
[1742484257711,0.3,85899.0,85898.0,0.69706697]
[1742484258136,0.301,85899.0,85898.0,0.69706697]
[1742484258337,0.301,85899.0,85898.0,0.73337193]
[1742484258549,0.3,85899.0,85898.0,0.73337193]
[1742484258755,0.301,85899.0,85898.0,0.73737193]
[1742484258976,0.302,85899.0,85898.0,0.73737193]
[1742484259186,0.301,85899.0,85898.0,0.73337193]
[1742484259398,0.3,85899.0,85898.0,0.73337193]
[1742484259604,0.301,85899.0,85898.0,0.73737193]
[1742484259810,0.302,85899.0,85898.0,0.73737193]
[1742484260022,0.002,85899.0,85898.0,1.03724678]
[1742484260840,0.002,85899.0,85898.0,2.53724678]
[1742484261172,0.001,85899.0,85898.0,2.53724678]
[1742484261411,0.002,85899.0,85898.0,2.30541278]
[1742484261788,0.001,85899.0,85898.0,2.28187193]
[1742484262013,0.3,85909.0,85898.0,2.28787193]
[1742484262218,0.3,85909.0,85901.0,0.11957503]
[1742484262431,0.3,85909.0,85902.0,0.03630496]
[1742484262636,0.3,85909.0,85903.0,0.11957503]
[1742484262869,0.3,85909.0,85904.0,0.03630496]
[1742484263075,0.3,85909.0,85905.0,0.11957503]
[1742484263274,0.3,85909.0,85906.0,0.03630496]
[1742484263458,0.3,85909.0,85907.0,0.26257503]
[1742484263680,0.3,85909.0,85908.0,0.03630496]
[1742484263874,0.00029388,85910.0,85908.0,0.15587999]
[1742484264103,0.00029388,85910.0,85909.0,0.15587999]
[1742484264319,0.00029388,85910.0,85909.0,0.29887999]
[1742484265591,0.00029388,85910.0,85909.0,0.30487999]
[1742484265775,0.00029388,85910.0,85909.0,0.31087999]
[1742484266271,0.00029388,85910.0,85909.0,0.31687999]
[1742484267549,0.00029388,85910.0,85909.0,0.39497999]
[1742484267761,0.00029388,85910.0,85909.0,0.63632484]
[1742484267973,0.00129388,85910.0,85909.0,0.44982084]
[1742484268182,0.00129388,85910.0,85909.0,0.68262484]
[1742484268382,0.00129388,85910.0,85909.0,0.68862484]
[1742484268599,0.00029388,85910.0,85909.0,0.68362484]
[1742484268811,0.00129388,85910.0,85909.0,0.44982084]
[1742484269040,0.00129388,85910.0,85909.0,0.68862484]
[1742484269250,0.0003388,85919.0,85917.0,0.004]
[1742484269455,0.01438681,85919.0,85918.0,0.1364429]
[1742484269662,0.01438681,85919.0,85918.0,0.17042084]
[1742484269868,0.0003388,85919.0,85918.0,0.17042084]
[1742484270504,0.0003388,85919.0,85918.0,1.67042084]
[1742484271108,0.01410308,85919.0,85918.0,1.67042084]
[1742484271311,0.0003388,85919.0,85918.0,1.67042084]
[1742484271643,0.0003388,85919.0,85918.0,1.67642084]
[1742484271861,0.01404721,85919.0,85918.0,1.80483999]
[1742484272074,0.0003388,85919.0,85918.0,0.31083999]
[1742484272312,0.0003388,85919.0,85918.0,0.82861503]
[1742484272540,0.0003388,85919.0,85918.0,0.82261503]
[1742484272766,0.0003388,85919.0,85918.0,0.81661503]
[1742484272987,0.0003388,85919.0,85918.0,0.82261503]
[1742484273413,0.0003388,85919.0,85918.0,0.84547254]
[1742484273635,0.01754465,85919.0,85918.0,0.84547254]
[1742484274087,0.0003388,85919.0,85918.0,0.85147254]
[1742484274425,0.0003388,85919.0,85918.0,0.70851254]
[1742484274621,0.0003388,85919.0,85918.0,0.84547254]
[1742484274843,0.0003388,85919.0,85918.0,0.85147254]
[1742484277917,0.01768046,85919.0,85918.0,0.85147254]
[1742484280609,0.01768046,85919.0,85918.0,2.35147254]
[1742484281302,0.01768046,85919.0,85918.0,2.34547254]
[1742484281742,0.01768046,85919.0,85918.0,2.35147254]
[1742484281952,0.01768046,85919.0,85918.0,2.34547254]
[1742484282147,0.01768046,85919.0,85918.0,2.35147254]
[1742484285669,0.01768046,85919.0,85918.0,2.35143254]
[1742484286236,0.01768046,85919.0,85918.0,2.37322409]
[1742484287450,0.55145746,85919.0,85918.0,2.11072906]
[1742484287652,0.31868046,85919.0,85918.0,0.61072906]
[1742484287860,0.73310046,85919.0,85918.0,0.03379155]
[1742484288063,0.545419,85918.0,85917.0,0.0003388]
[1742484288209,2.830231,85918.0,85917.0,0.0003388]
[1742484288614,2.63848571,85918.0,85917.0,0.0003388]
[1742484289029,0.544435,85912.0,85911.0,0.10441474]
[1742484289364,1.284091,85912.0,85911.0,0.05628474]
[1742484289479,1.1911462,85912.0,85911.0,0.01650475]
[1742484289883,1.1911462,85912.0,85911.0,1e-08]
[1742484290124,0.5475662,85912.0,85911.0,1e-08]
[1742484290368,0.3041312,85912.0,85911.0,1e-08]
[1742484290489,0.32138669,85912.0,85911.0,0.00300001]
[1742484290896,0.32238669,85912.0,85911.0,0.00300001]
[1742484292069,0.33224947,85912.0,85911.0,0.00300001]
[1742484292216,0.33224947,85912.0,85911.0,0.003]
[1742484292861,0.001,85909.0,85901.0,0.02307209]
[1742484293160,0.001,85909.0,85902.0,0.11957503]
[1742484293418,0.00309165,85908.0,85902.0,0.11957503]
[1742484293816,0.00309165,85908.0,85903.0,0.14292]
[1742484293972,0.00309165,85908.0,85904.0,1.61957503]
[1742484295685,0.00409165,85908.0,85904.0,1.61957503]
[1742484295866,0.001,85908.0,85904.0,1.61957503]
[1742484296055,0.00309378,85907.0,85904.0,1.61957503]
[1742484296722,0.00309378,85907.0,85904.0,1.62357503]
[1742484296926,0.00309378,85907.0,85904.0,0.12357503]
[1742484297142,0.00309378,85907.0,85901.0,0.02319677]
[1742484297143,0.001,85902.0,85901.0,0.02319677]
[1742484297352,0.692831,85902.0,85901.0,0.02319677]
[1742484297499,1.550707,85902.0,85901.0,0.02319677]
[1742484297704,1.27796678,85902.0,85901.0,0.02319677]
[1742484297961,0.30409378,85902.0,85901.0,0.02319677]
[1742484298464,0.43690078,85902.0,85901.0,0.02319677]
[1742484298654,0.43690078,85902.0,85901.0,0.00012468]
[1742484298862,0.76406478,85902.0,85901.0,0.00012468]
[1742484299082,0.81296478,85902.0,85901.0,0.00512468]
[1742484299508,0.82750563,85902.0,85901.0,0.00512468]
[1742484300211,0.82750563,85902.0,85901.0,0.01112468]
[1742484300352,0.82750563,85902.0,85901.0,0.00512468]
[1742484300556,0.82650563,85902.0,85901.0,0.00012468]
[1742484300818,0.82750563,85902.0,85901.0,0.00712468]
[1742484301061,0.012643,85887.0,85886.0,0.02176396]
[1742484301265,0.8052474,85887.0,85886.0,0.02176396]
[1742484301469,3.12678305,85887.0,85886.0,0.02176396]
[1742484302232,3.00720802,85887.0,85886.0,0.02176396]
[1742484302428,0.32718385,85886.0,85885.0,0.2326]
[1742484302633,3.09053685,85886.0,85885.0,0.2326]
[1742484303036,3.32340285,85886.0,85885.0,0.2326]
[1742484303254,3.64511053,85886.0,85885.0,0.2270776]
[1742484303455,3.64511053,85886.0,85868.0,0.10449451]
[1742484303456,0.621537,85876.0,85868.0,0.10449451]
[1742484303650,3.75202788,85876.0,85868.0,0.10449451]
[1742484304058,0.544557,85869.0,85868.0,0.10449451]
[1742484304285,5.00459288,85869.0,85868.0,0.10449451]
[1742484304455,3.70234447,85869.0,85868.0,0.10449451]
[1742484304651,3.66028147,85869.0,85868.0,0.10449451]
[1742484304853,3.69106448,85869.0,85868.0,0.10449451]
[1742484305680,0.79204648,85869.0,85868.0,0.10449451]
[1742484305923,5.7298354,85869.0,85868.0,0.10449451]
[1742484306254,5.4067524,85869.0,85868.0,0.10449451]
[1742484306432,0.544592,85857.0,85843.0,0.02285498]
[1742484306589,2.08226085,85857.0,85843.0,0.02285498]
[1742484307217,2.10351835,85857.0,85843.0,0.02285498]
[1742484307418,2.01172935,85857.0,85843.0,0.02285498]
[1742484307621,2.01172935,85857.0,85856.0,0.00275435]
[1742484308807,2.01272935,85857.0,85856.0,0.00275435]
[1742484309009,2.26290438,85857.0,85856.0,0.00275435]
[1742484310001,2.26290438,85857.0,85830.0,0.02164591]
[1742484310002,0.31554085,85832.0,85830.0,0.02164591]
[1742484310211,0.57093685,85832.0,85831.0,0.00046313]
[1742484310472,0.30318189,85832.0,85831.0,0.00046313]
[1742484311151,0.3120709,85832.0,85831.0,0.00046313]
[1742484312084,0.3120709,85832.0,85831.0,0.12003816]
[1742484312284,0.01517146,85832.0,85831.0,0.31149816]
[1742484312673,0.22594195,85841.0,85831.0,0.26299816]
[1742484312674,0.001,85839.0,85831.0,0.26299816]
[1742484312879,0.00331857,85832.0,85831.0,0.00046313]
[1742484313171,0.001,85832.0,85831.0,0.00046313]
[1742484313373,0.00434368,85832.0,85831.0,0.00046313]
[1742484313604,0.002,85832.0,85831.0,0.00046313]
[1742484313800,0.00434368,85832.0,85831.0,0.12003816]
[1742484314045,0.001,85837.0,85831.0,0.12003816]
[1742484314251,0.001,85837.0,85832.0,0.11957503]
[1742484314464,0.001,85834.0,85833.0,1.5]
[1742484314671,0.31265,85832.0,85831.0,0.00046313]
[1742484314891,1.030293,85832.0,85831.0,0.00046313]
[1742484315088,0.450342,85832.0,85831.0,0.00046313]
[1742484315267,0.301,85832.0,85831.0,0.00046313]
[1742484315716,0.001,85832.0,85831.0,0.00046313]
[1742484316006,0.3,85833.0,85831.0,0.00046313]
[1742484316209,0.3,85833.0,85832.0,0.11957503]
[1742484316531,0.31827012,85833.0,85831.0,0.00146313]
[1742484317395,0.866686,85832.0,85831.0,0.00146313]
[1742484317584,0.633673,85832.0,85831.0,0.00146313]
[1742484317759,1.248533,85832.0,85831.0,0.00146313]
[1742484317958,1.248533,85832.0,85831.0,0.00046313]
[1742484318226,1.248533,85832.0,85831.0,0.00246313]
[1742484318420,1.233877,85832.0,85831.0,0.00246313]
[1742484318618,1.46689,85832.0,85831.0,0.00246313]
[1742484318969,1.46689,85832.0,85831.0,0.00046313]
[1742484319173,1.598492,85832.0,85831.0,0.00346313]
[1742484319375,1.61303285,85832.0,85831.0,0.00346313]
[1742484319585,0.001,85826.0,85821.0,0.02371009]
[1742484319783,0.96535772,85826.0,85815.0,0.02164591]
[1742484319994,1.96616072,85826.0,85813.0,0.02343694]
[1742484320343,1.24303072,85826.0,85813.0,0.02343694]
[1742484320550,1.09541972,85826.0,85813.0,0.02343694]
[1742484321636,1.1041324,85826.0,85813.0,0.02343694]
[1742484322074,1.1041324,85826.0,85825.0,0.003339]
[1742484322302,1.1051324,85826.0,85825.0,0.003339]
[1742484326180,1.0915324,85826.0,85825.0,0.003339]
[1742484326988,0.9614704,85826.0,85825.0,0.003339]
[1742484327193,1.4147514,85826.0,85825.0,0.003339]
[1742484327417,1.2150524,85826.0,85825.0,0.003339]
[1742484327894,0.70224955,85826.0,85825.0,0.003339]
[1742484328128,0.70224955,85826.0,85825.0,0.02498491]
[1742484328906,0.7167904,85826.0,85825.0,0.02498491]
[1742484329110,0.301,85818.0,85817.0,0.11411622]
[1742484329272,0.301,85818.0,85817.0,0.11424077]
[1742484329898,0.31927361,85818.0,85817.0,0.11089463]
[1742484330104,0.301,85818.0,85817.0,0.11089463]
[1742484330923,0.302,85818.0,85817.0,0.11089463]
[1742484331324,0.301,85818.0,85817.0,0.20481566]
[1742484331523,0.302,85818.0,85817.0,0.08524063]
[1742484331928,0.70713687,85818.0,85817.0,0.08524063]
[1742484332127,0.70713687,85818.0,85817.0,0.00012455]
[1742484332333,0.70713687,85818.0,85814.0,0.14296]
[1742484332334,0.001,85815.0,85814.0,0.14296]
[1742484332599,0.534059,85815.0,85814.0,0.14296]
[1742484332918,0.545711,85815.0,85814.0,0.14296]
[1742484333122,0.301,85815.0,85814.0,0.14296]
[1742484333384,0.001,85815.0,85811.0,0.14296]
[1742484333551,0.3,85813.0,85812.0,0.11957503]
[1742484335063,0.301,85813.0,85812.0,0.11957503]
[1742484336450,0.001,85813.0,85812.0,0.2044055]
[1742484336656,0.001,85813.0,85812.0,0.29040519]
[1742484336861,0.301,85813.0,85812.0,0.28807489]
[1742484337073,0.001,85813.0,85812.0,1.78807489]
[1742484337283,0.40513687,85814.0,85812.0,1.78807489]
[1742484337499,0.70513687,85814.0,85813.0,0.15587489]
[1742484337717,0.70513687,85814.0,85813.0,0.15387489]
[1742484337937,0.3,85814.0,85813.0,0.15387489]
[1742484338381,0.00012448,85818.0,85813.0,0.15387489]
[1742484338382,0.00012448,85818.0,85813.0,0.2411052]
[1742484338578,0.00012448,85818.0,85817.0,0.50942903]
[1742484338791,0.00012448,85818.0,85817.0,0.54572889]
[1742484338998,0.00012448,85818.0,85817.0,0.42663489]
[1742484339280,0.00012448,85818.0,85817.0,0.45163489]
[1742484339507,0.40513687,85853.0,85829.0,0.004]
[1742484339710,0.22594195,85850.0,85838.0,0.11957503]
[1742484339939,0.22594195,85850.0,85838.0,0.85355489]
[1742484340137,0.01647834,85847.0,85844.0,0.11957503]
[1742484340355,0.3,85849.0,85845.0,0.03529986]
[1742484340640,0.3,85849.0,85846.0,0.11957503]
[1742484340870,0.22606668,85850.0,85846.0,0.11957503]
[1742484340871,0.00012473,85850.0,85848.0,0.0809]
[1742484341060,0.01659256,85849.0,85848.0,0.13012936]
[1742484341290,0.00112473,85850.0,85848.0,0.28368488]
[1742484341527,0.00112473,85850.0,85838.0,0.70068]
[1742484341528,0.00112473,85850.0,85849.0,0.15588488]
[1742484341740,2.01907829,85850.0,85838.0,0.55472]
[1742484341945,0.001,85839.0,85838.0,0.55472]
[1742484342148,0.70613687,85839.0,85838.0,0.55472]
[1742484342349,0.7094975,85839.0,85838.0,0.55472]
[1742484342963,0.7094975,85839.0,85838.0,0.55772]
[1742484343177,0.7094975,85839.0,85838.0,0.59402278]
[1742484343354,0.7094975,85839.0,85838.0,0.55472]
[1742484343610,0.70613687,85839.0,85838.0,0.60302264]
[1742484343813,0.70613687,85839.0,85838.0,0.56672]
[1742484344035,0.70947685,85839.0,85838.0,0.56672]
[1742484344187,0.70947685,85839.0,85838.0,0.56072]
[1742484344383,0.70947685,85839.0,85838.0,0.56672]
[1742484344799,0.70613687,85839.0,85838.0,0.56672]
[1742484345195,0.70947685,85839.0,85838.0,0.56672]
[1742484346230,0.72774653,85839.0,85838.0,0.56672]
[1742484347259,0.75393638,85839.0,85838.0,0.012]
[1742484347463,3.67733909,85839.0,85838.0,0.012]
[1742484347680,3.64313941,85839.0,85838.0,0.012]
[1742484348093,3.64313941,85839.0,85838.0,0.006]
[1742484348524,3.64313941,85839.0,85838.0,0.011]
[1742484348525,3.46213841,85839.0,85838.0,0.011]
[1742484348753,3.22444541,85839.0,85838.0,0.011]
[1742484349482,3.22444541,85839.0,85838.0,0.005]
[1742484349682,3.22444541,85839.0,85838.0,0.007]
[1742484350103,0.02619185,85828.0,85827.0,0.10449451]
[1742484350305,1.76064872,85828.0,85827.0,0.10449451]
[1742484350446,0.001,85815.0,85811.0,0.0003392]
[1742484350656,0.001,85812.0,85811.0,0.0003392]
[1742484351292,0.00429804,85812.0,85811.0,0.0003392]
[1742484351710,0.00438027,85812.0,85811.0,0.0003392]
[1742484352412,0.00338027,85812.0,85811.0,0.11991423]
[1742484353008,0.00338027,85812.0,85811.0,0.12391423]
[1742484353237,0.00438027,85812.0,85811.0,0.12891423]
[1742484353682,0.00338027,85812.0,85811.0,0.12391423]
[1742484354100,0.00438027,85812.0,85811.0,0.12891423]
[1742484354245,0.00108223,85812.0,85811.0,0.12891423]
[1742484355293,0.01935661,85812.0,85811.0,0.12891423]
[1742484355493,0.62322221,85812.0,85811.0,0.12891423]
[1742484356345,0.62322221,85812.0,85811.0,0.16375266]
[1742484357544,0.62322221,85812.0,85811.0,1.66375266]
[1742484360143,0.62422221,85812.0,85811.0,0.04417763]
[1742484360517,0.62422221,85812.0,85811.0,0.0093392]
[1742484361723,0.62322221,85812.0,85811.0,0.12891423]
[1742484363037,0.62422221,85812.0,85811.0,0.0093392]
[1742484363911,0.62322221,85812.0,85811.0,0.0093392]
[1742484364115,0.60494783,85812.0,85811.0,0.12891423]
[1742484364322,0.60494783,85812.0,85811.0,0.24230506]
[1742484364323,0.30430547,85812.0,85811.0,0.24230506]
[1742484364968,0.30064236,85829.0,85813.0,0.011653]
[1742484365179,0.07370041,85839.0,85827.0,0.11957503]
[1742484365397,0.0001696,85845.0,85834.0,0.35258203]
[1742484365398,0.00029432,85845.0,85834.0,0.35258203]
[1742484365618,0.00029432,85845.0,85841.0,0.11957503]
[1742484365829,0.00029432,85845.0,85842.0,0.14288]
[1742484366061,0.00029432,85845.0,85843.0,1.62190437]
[1742484366275,0.00029432,85845.0,85843.0,1.61957503]
[1742484366497,0.00029432,85845.0,85844.0,0.14284]
[1742484366706,0.00029432,85845.0,85844.0,0.26241503]
[1742484366916,0.00029432,85845.0,85844.0,0.28528327]
[1742484367096,0.00029432,85845.0,85844.0,1.78528327]
[1742484368410,0.00029432,85845.0,85844.0,1.79028327]
[1742484369879,0.00029432,85845.0,85844.0,1.79628327]
[1742484370836,0.00029432,85845.0,85844.0,2.02326327]
[1742484371007,0.00029432,85845.0,85844.0,2.05946138]
[1742484371247,0.00936911,85850.0,85849.0,0.232967]
[1742484371458,0.22594195,85870.0,85855.0,0.23295]
[1742484371673,0.07370041,85878.0,85860.0,0.11957503]
[1742484371875,0.0031797,85869.0,85868.0,0.11957503]
[1742484372292,0.00012469,85873.0,85868.0,0.11957503]
[1742484372499,0.001,85869.0,85868.0,0.11957503]
[1742484372676,0.001,85869.0,85868.0,0.26237503]
[1742484373116,0.001,85869.0,85868.0,0.28530396]
[1742484373319,0.001,85869.0,85856.0,0.5546]
[1742484373320,0.001,85861.0,85856.0,0.5546]
[1742484373524,0.001,85861.0,85857.0,0.26237503]
[1742484373718,0.001,85861.0,85860.0,0.02358958]
[1742484374665,0.001,85857.0,85856.0,0.42145124]
[1742484375079,0.001,85844.0,85843.0,0.14276]
[1742484375299,0.001,85838.0,85837.0,0.65911344]
[1742484375497,0.07470041,85838.0,85837.0,0.01698344]
[1742484376415,0.07470041,85838.0,85837.0,1e-08]
[1742484376624,0.09296952,85838.0,85837.0,1e-08]
[1742484377232,0.09196952,85838.0,85837.0,1e-08]
[1742484377632,0.09196952,85838.0,85837.0,0.11957504]
[1742484378074,0.09196952,85838.0,85837.0,0.13157504]
[1742484378685,0.09196952,85838.0,85837.0,0.12557504]
[1742484378899,0.09196952,85838.0,85837.0,1.62557503]
[1742484379106,0.001,85857.0,85838.0,0.232997]
[1742484379312,0.01826804,85856.0,85839.0,0.12190439]
[1742484379519,0.01826804,85856.0,85840.0,0.232988]
[1742484379726,0.01826804,85856.0,85841.0,0.1219043]
[1742484379920,0.01826804,85856.0,85842.0,0.14276]
[1742484380126,0.01826804,85856.0,85843.0,0.11957503]
[1742484380428,0.01826804,85856.0,85844.0,0.55688927]
[1742484380668,0.01826804,85856.0,85845.0,0.11957503]
[1742484380871,0.001,85869.0,85846.0,0.00232915]
[1742484381157,0.0182646,85870.0,85851.0,0.232959]
[1742484381388,0.0182646,85870.0,85852.0,0.12190403]
[1742484381589,0.3,85869.0,85855.0,0.02349621]
[1742484381789,0.07370041,85868.0,85856.0,0.26233503]
[1742484382147,0.08341873,85868.0,85867.0,0.02388124]
[1742484383132,0.08241873,85868.0,85867.0,0.02388124]
[1742484383723,0.08341873,85868.0,85867.0,0.02388124]
[1742484383860,0.08341873,85868.0,85867.0,0.02988124]
[1742484384055,0.08241873,85868.0,85867.0,0.02988124]
[1742484384591,0.08241873,85868.0,85867.0,0.02388124]
[1742484384799,0.08241873,85868.0,85867.0,0.02988124]
[1742484384999,0.08341873,85868.0,85867.0,0.02988124]
[1742484386229,0.08341873,85868.0,85867.0,0.03288124]
[1742484386611,0.08341873,85868.0,85867.0,0.02988124]
[1742484386848,0.08341873,85868.0,85867.0,0.03488124]
[1742484389134,0.38241873,85868.0,85867.0,0.03488124]
[1742484389358,0.01826346,85869.0,85867.0,0.15445627]
[1742484389565,0.07470041,85888.0,85868.0,0.11957503]
[1742484389771,0.07470041,85888.0,85869.0,0.55444]
[1742484389772,0.02522361,85873.0,85869.0,0.55444]
[1742484390165,0.0030257,85872.0,85870.0,0.26229503]
[1742484390299,0.00012469,85873.0,85870.0,0.26229503]
[1742484391090,0.00012469,85873.0,85871.0,0.00232858]
[1742484391289,0.00012469,85873.0,85872.0,0.11957503]
[1742484391492,0.00012469,85873.0,85872.0,0.1557177]
[1742484391741,0.01651597,85873.0,85872.0,0.1557177]
[1742484391896,0.25466534,85900.0,85876.0,0.232892]
[1742484392094,0.07370041,85899.0,85877.0,0.39093694]
[1742484392357,0.08965296,85899.0,85878.0,0.1557177]
[1742484392584,0.08965296,85899.0,85879.0,0.03847089]
[1742484392812,0.08965296,85899.0,85880.0,0.1557177]